[Event "Israeli Team-ch 2023"]
[Site "Petah Tikva"]
[Date "2023.01.13"]
[Round "2.14"]
[White "Kupervaser, Erez"]
[Black "Gruenfeld, Yehuda"]
[Result "1/2-1/2"]
[ECO "B53"]
[WhiteElo "2293"]
[BlackElo "2414"]
[Annotator "TA"]
[PlyCount "44"]
[EventDate "2023.01.13"]
[EventCountry "ISR"]
[SourceTitle "playchess.com"]
[Source "ChessBase"]
[SourceQuality "1"]
[TimeControl "40/5400+30:1800+30"]

{[%evp 9,44,35,29,22,23,23,42,42,45,44,42,40,45,41,53,52,70,27,40,31,30,26,33,20,32,25,26,-86,29,0,0,0,36,14,75,0,50]} 1. e4 {[%emt 0:07:16]} c5 {[%emt 0:00:17]} 2. Nf3 {[%emt 0:03:59]} d6 {[%emt 0:00:09]} 3. d4 {[%emt 0:01:13]} cxd4 {[%emt 0:00:10]} 4. Qxd4 {[%emt 0:00:06]} a6 {[%emt 0:01:31]} 5. h3 {[%emt 0:02:35]} Nc6 {[%emt 0:00:15]} 6. Qe3 {[%emt 0:00:06] B53: Sicilian: 2...d6: Lines with Qxd4.} Nf6 {[%emt 0:01:48]} 7. c4 {[%emt 0:01:57]} e6 {[%emt 0:01:09]} 8. Be2 {[%emt 0:00:11] White is slightly better.} Be7 {[%emt 0:00:17]} 9. O-O $1 {[%emt 0:00:07]} O-O {[%emt 0:00:09]} 10. Rd1 {[%emt 0:02:31] Strongly threatening e5.} Qc7 {[%emt 0:02:35]} 11. Nc3 {[%emt 0:03:44]} Re8 {[%emt 0:06:05]} 12. b3 {[%emt 0:04:26]} Ne5 {[%emt 0:05:59] [#]} 13. Nd4 $146 {[%emt 0:09:37]} ({Predecessor:} 13. Bb2 Bd7 14. Rac1 Rad8 15. Nd4 Qc5 16. Rd2 Bc6 17. Nd5 Nxe4 18. b4 Nxc4 19. Nxe7+ Rxe7 20. Rxc4 Nxd2 21. bxc5 {1-0 Chiaramitara,P (2079)-Desideri,R (1954) Sao Paulo Carnaval op 2018 (7)}) 13... Ng6 {[%emt 0:04:12][%cal Od6d5]} 14. Bb2 {[%emt 0:05:14]} b6 {[%emt 0:02:11]} 15. Rac1 {[%emt 0:05:52]} Bb7 {[%emt 0:01:05]} 16. b4 {[%emt 0:15:31]} Rac8 {[%emt 0:04:02]} 17. Nb3 {[%emt 0:03:42]} Ba8 {[%emt 0:06:01]} 18. Na4 {[%emt 0:11:17]} (18. b5 $11) 18... Nd7 {[%emt 0:04:38]} (18... Nxe4 $17 {And now ...Rb8 would win.} 19. Qxb6 (19. Nxb6 Bg5 $15) 19... Qb8) 19. g3 {[%emt 0:06:23]} Qb7 {[%emt 0:06:50]} 20. Nd2 {[%emt 0:01:35]} Bf8 {[%emt 0:06:22]} 21. Nc3 {[%emt 0:04:32]} Qb8 {[%emt 0:02:53]} (21... d5 $11 {keeps the balance.}) 22. Qd4 {[%emt 0:03:28]} (22. a3 $16) 22... Bb7 {[%emt 0:09:36] Weighted Error Value: White=0.20 (precise) /Black=0.21 (precise)} (22... Nge5 $11) 1/2-1/2

[Event "Israeli Team-ch 2023"]
[Site "Petah Tikva"]
[Date "2023.01.13"]
[Round "2.15"]
[White "Zaslavsky, Mikhail"]
[Black "Aharon, Ofir"]
[Result "0-1"]
[ECO "A01"]
[WhiteElo "2430"]
[BlackElo "2256"]
[Annotator "TA"]
[PlyCount "96"]
[EventDate "2023.01.13"]
[EventCountry "ISR"]
[SourceTitle "playchess.com"]
[Source "ChessBase"]
[SourceQuality "1"]
[TimeControl "40/5400+30:1800+30"]

{[%evp 9,96,20,25,23,15,18,20,14,16,14,68,69,53,69,58,31,39,25,32,-8,0,-3,-15,-12,0,-56,-57,-69,-56,-63,-66,-64,-76,-62,-63,-115,-115,-315,-294,-291,-156,-179,-179,-341,-335,-270,-261,-232,-81,-695,-685,-908,-889,-810,-540,-5169,-5169,-5073,-162,-427,-2,-8,-6,-6,-6,-508,-470,-816,-790,-766,-720,-854,-725,-1821,-1645,-1920,-1836,-5716,-6362,-29973,-29974,-29985,-29986,-29986,-29984,-29984,-29985,-29983,-29983]} 1. b3 {[%emt 0:00:04]} e5 {[%emt 0:06:06]} 2. Bb2 {[%emt 0:00:05]} Nc6 {[%emt 0:00:05]} 3. e3 {[%emt 0:00:02]} g6 {[%emt 0:01:20]} 4. Nf3 {[%emt 0:00:22]} Bg7 {[%emt 0:00:06]} 5. c4 {[%emt 0:00:03]} Nge7 {[%emt 0:00:48]} 6. d4 {[%emt 0:00:05] A01: Nimzowitsch-Larsen Opening.} exd4 {[%emt 0:01:22]} 7. Nxd4 {[%emt 0:00:02]} O-O {[%emt 0:01:24]} 8. Be2 {[%emt 0:00:02] [#] The position is equal.} a5 $146 {[%emt 0:02:13]} ({Predecessor:} 8... Qe8 9. Qd2 Nxd4 10. Bxd4 Bxd4 11. Qxd4 Nc6 12. Qd2 d6 13. Nc3 Qe5 14. O-O Be6 {1-0 Vidit,S (2726)-Murzin,V (2478) Titled Tuesday intern op 18th May blitz 2021 (11)}) 9. Nxc6 {[%emt 0:05:20]} Nxc6 {[%emt 0:01:55]} ({Black should try} 9... dxc6 $11 10. Qc1 Nf5) 10. Bxg7 $14 {[%emt 0:00:21]} Kxg7 {[%emt 0:00:02]} 11. Nc3 {[%emt 0:00:21]} d6 {[%emt 0:00:30]} 12. h4 {[%emt 0:01:56]} h5 {[%emt 0:08:09]} 13. Rc1 {[%emt 0:24:19]} Re8 {[%emt 0:04:58]} 14. g4 {[%emt 0:01:55]} Bxg4 {[%emt 0:06:06]} 15. Bxg4 {[%emt 0:00:07]} hxg4 {[%emt 0:00:06]} 16. Qxg4 {[%emt 0:01:26]} Ne5 {[%emt 0:08:27]} 17. Qe2 {[%emt 0:01:23]} (17. Qe4 $11) 17... Rh8 $15 {[%emt 0:06:38]} 18. h5 {[%emt 0:08:36]} Rxh5 $1 {[%emt 0:02:29]} 19. Rxh5 {[%emt 0:00:05]} gxh5 {[%emt 0:00:05]} 20. Nd5 {[%emt 0:06:44]} c6 {[%emt 0:10:46]} 21. Nf4 {[%emt 0:00:11]} h4 $1 $36 {[%emt 0:00:13][%mdl 2048] ...Qg5 is the strong threat. Black has good play.} 22. Qh5 {[%emt 0:14:01] Wards off Qg5} (22. Nh5+ $15 Kf8 23. f4) 22... Qf6 $17 {[%emt 0:02:36]} 23. Qd1 $2 {[%emt 0:08:37]} (23. Ke2 $17) 23... Rh8 $19 {[%emt 0:04:39][%cal Oa5a4]} 24. Ke2 {[%emt 0:01:13]} Ng6 {[%emt 0:06:13]} (24... h3 $19 25. Qc2 h2) 25. Nxg6 {[%emt 0:05:04]} (25. Qg1 $2 Qb2+ 26. Kd3 Qxa2 $19) 25... fxg6 $17 {[%emt 0:00:15][%mdl 4096] Endgame KQR-KQR} (25... Kxg6 26. Qd3+ Kg7 27. c5 $17) 26. c5 $2 {[%emt 0:02:18]} (26. Qe1 {keeps fighting.}) 26... d5 $19 {[%emt 0:25:59]} (26... Rf8 $2 27. Qd4 $19) 27. Qd2 {[%emt 0:03:31]} h3 (27... Rf8 $2 28. Qc3 $19) 28. Qxa5 {[%emt 0:12:17]} Re8 $2 (28... g5 $19 {Hoping for ...Kg6.} 29. Qc7+ Kg6) 29. Qb4 $2 {[%emt 0:04:30][%mdl 8192]} (29. Rh1 $17) 29... d4 {[%emt 0:00:00]} 30. Rd1 {[%emt 0:00:00]} dxe3 31. fxe3 {[%emt 0:00:00]} Rf8 32. Qxb7+ {[%emt 0:01:30]} Kh6 {[%emt 0:00:00]} 33. Qd7 {[%emt 0:00:00]} Qf2+ {[%emt 0:00:48]} (33... Qf3+ $142 34. Kd2 h2) 34. Kd3 {[%emt 0:00:00]} Qf5+ {[%emt 0:01:53]} ({Weaker is} 34... Qxa2 35. Qxh3+ Kg7 36. Qd7+ Kg8 37. Qe6+ (37. Qxc6 Rd8+ 38. Kc3 Rxd1 $11) 37... Kg7 38. Kc3 (38. Qxc6 $2 {too greedy.} Rd8+ {[%mdl 64] Skewer} 39. Kc3 Rxd1 $19) 38... Qa5+ 39. b4 Qa3+ 40. Qb3 $16) (34... Rf3 35. Qd4 $11) (34... Qf3 $19 35. Rd2 Rf5) 35. Qxf5 $11 {[%emt 0:00:03]} Rxf5 {[%emt 0:00:03] KR-KR} 36. Rh1 {[%emt 0:00:28]} Rh5 {[%emt 0:00:08] ...Kg5 would be deadly.} 37. b4 $2 {[%emt 0:00:54][%mdl 8192] [#]} (37. e4 $1 $11 {and White has nothing to worry.}) 37... Kg5 $1 $19 {[%emt 0:00:42] Threatens to win with ...Kh4.} 38. b5 {[%emt 0:00:08]} (38. a4 $142 Kh4 39. b5 cxb5 40. axb5 Rxc5 41. Rb1) 38... cxb5 {[%emt 0:00:29]} 39. c6 {[%emt 0:00:48]} Kh4 {[%emt 0:00:37]} 40. Kd4 {[%emt 0:00:36] Prevents Rd5+.} Rh8 {[%emt 0:00:43] And now ...g5 would win.} 41. c7 {[%emt 0:16:55]} Rc8 {[%emt 0:04:09]} 42. Rc1 {[%emt 0:00:14]} g5 {[%emt 0:01:14][%cal Bg6g5,Bg5g4,Bg4g3][%mdl 32]} 43. e4 {[%emt 0:06:56]} g4 {[%emt 0:01:34] ( -> ...g3)} 44. Ke3 {[%emt 0:00:33] [#]} g3 $1 {[%emt 0:01:28] Black mates.} 45. e5 {[%emt 0:00:07]} h2 {[%emt 0:01:45]} 46. Kf3 {[%emt 0:01:48] [#]} Rxc7 $3 {[%emt 0:03:01][%mdl 576] Deflection, Promotion} 47. Rxc7 {[%emt 0:00:10]} h1=Q+ {[%emt 0:00:06]} ({Don't take} 47... h1=R 48. Rh7+ Kg5 49. Rxh1 g2 50. Kxg2 Kf5 51. Re1 Ke6 52. Kg3) 48. Kf4 {[%emt 0:00:03]} Qf1+ {[%emt 0:00:20] Weighted Error Value: White=1.31/Black=0.37} 0-1

[Event "Israeli Team-ch 2023"]
[Site "Petah Tikva"]
[Date "2023.01.13"]
[Round "2.16"]
[White "Liubarov, Mark"]
[Black "Musyuk, Lior"]
[Result "1/2-1/2"]
[ECO "E04"]
[WhiteElo "2291"]
[BlackElo "2341"]
[Annotator "TA"]
[PlyCount "56"]
[EventDate "2023.01.13"]
[EventCountry "ISR"]
[SourceTitle "playchess.com"]
[Source "ChessBase"]
[SourceQuality "1"]
[TimeControl "40/5400+30:1800+30"]

{[%evp 13,56,32,22,29,44,0,6,0,33,34,27,4,28,33,20,22,28,29,31,27,21,12,34,13,27,23,15,0,0,-15,-10,-27,-15,-20,-21,-20,0,0,0,0,0,-4,0,-6,0]} 1. d4 {[%emt 0:06:43]} d5 {[%emt 0:00:35]} 2. c4 {[%emt 0:00:04]} e6 {[%emt 0:00:10]} 3. Nf3 {[%emt 0:00:04]} Nf6 {[%emt 0:00:39][%cal Bg8f6,Bf6d5,Bd5b4][%mdl 32]} 4. g3 {[%emt 0:00:04]} dxc4 {[%emt 0:00:36]} 5. Bg2 {[%emt 0:00:06]} Nc6 {[%emt 0:00:12]} 6. Qa4 {[%emt 0:03:03]} Bb4+ {[%emt 0:03:06]} 7. Bd2 {[%emt 0:01:48]} Nd5 {[%emt 0:00:50]} 8. Bxb4 {[%emt 0:02:20] E04: Open Catalan: 5 Nf3.} Ndxb4 {[%emt 0:00:23]} 9. Na3 {[%emt 0:01:28]} O-O {[%emt 0:03:36]} 10. O-O {[%emt 0:03:33][%cal Bh1f1,Bf1c1,Bc1c6][%mdl 32]} Rb8 {[%emt 0:03:55]} 11. Qb5 $1 {[%emt 0:06:41]} b6 {[%emt 0:02:29]} 12. Qxc4 {[%emt 0:10:11]} Ba6 {[%emt 0:00:15]} (12... Qe7 $5 {[%cal Rc8a6]}) 13. Nb5 {[%emt 0:00:34]} Qe8 $1 {[%emt 0:01:57][%mdl 4] is now more promising than 13...Qd5.} 14. Rfc1 {[%emt 0:06:24]} (14. Rfd1 {is more complex.} Rd8 15. Rdc1 e5 16. dxe5 Nxe5 17. Qxb4 c5 18. Nc7) 14... Nd5 {[%emt 0:08:39] Threatens to win with ...Na5.} 15. Qxc6 {[%emt 0:14:28]} Qxc6 {[%emt 0:00:20][%mdl 64] [#] Remove Defender} ({Not} 15... Bxb5 16. Qxe8 Bxe8 17. e4 $16) 16. Rxc6 {[%emt 0:00:02]} Bxb5 {[%emt 0:00:17]} 17. Rc2 {[%emt 0:00:12]} c5 {[%emt 0:07:37]} 18. e3 {[%emt 0:14:29]} (18. dxc5 $5 {[%cal Rf3d4]} Nb4 19. Rc3 $14) 18... Rfc8 {[%emt 0:04:15]} 19. dxc5 {[%emt 0:00:34] [#]} bxc5 $146 {[%emt 0:01:33]} ({Predecessor:} 19... Nb4 20. Rc3 Rxc5 21. Rxc5 bxc5 22. Bf1 Kf8 23. Bxb5 Rxb5 24. Ne5 Ke7 25. Nc4 Nc6 {0-1 Grischuk,A (2777)-Le,Q (2709) FIDE Steinitz Memorial blitz 2020 (9)}) 20. Rac1 {[%emt 0:04:25]} c4 {[%emt 0:03:57]} 21. a3 {[%emt 0:03:15][%cal Ob2b3] [#] Repels Nb4} c3 $1 {[%emt 0:01:25]} 22. bxc3 {[%emt 0:02:37]} Ba4 {[%emt 0:03:57]} 23. Rd2 {[%emt 0:00:36] The position is equal.} Nxc3 {[%emt 0:01:08][%cal Oc3e2] aiming for ...Ne2+!} 24. Nd4 {[%emt 0:03:24] Wards off Ne2+} Nb1 {[%emt 0:04:38]} 25. Rxc8+ {[%emt 0:00:09]} Rxc8 {[%emt 0:00:01]} 26. Rb2 {[%emt 0:00:30]} Nxa3 {[%emt 0:02:01]} 27. Bc6 {[%emt 0:02:21]} Bxc6 {[%emt 0:02:27]} 28. Nxc6 {[%emt 0:00:01] Black must now prevent Ne7+.} Kf8 {[%emt 0:00:41] Prevents Ne7.   Weighted Error Value: White=0.05 (flawless) /Black=0.06 (flawless)} 1/2-1/2

[Event "Israeli Team-ch 2023"]
[Site "Petah Tikva"]
[Date "2023.01.13"]
[Round "2.17"]
[White "Rahmilevitz, Anton"]
[Black "Levitan, Tal"]
[Result "1/2-1/2"]
[ECO "C80"]
[WhiteElo "2250"]
[BlackElo "2286"]
[Annotator "TA"]
[PlyCount "80"]
[EventDate "2023.01.13"]
[EventCountry "ISR"]
[SourceTitle "playchess.com"]
[Source "ChessBase"]
[SourceQuality "1"]
[TimeControl "40/5400+30:1800+30"]

{[%evp 20,80,0,0,7,-2,0,-12,3,7,24,16,16,17,19,12,16,0,-5,0,3,7,12,21,35,35,31,27,32,0,0,0,0,0,24,0,0,0,0,0,0,0,0,0,0,0,0,0,0,-10,-4,-10,-12,-10,-10,-23,-23,-27,-14,-27,-11,-44,-29]} 1. e4 {[%emt 1:31:00]} e5 {[%emt 0:06:44]} 2. Nf3 {[%emt 0:00:00]} Nc6 {[%emt 0:00:14]} 3. Bb5 {[%emt 0:00:00]} a6 {[%emt 0:00:06]} 4. Ba4 {[%emt 0:00:00]} Nf6 {[%emt 0:00:06]} 5. O-O {[%emt 0:00:00]} Nxe4 {[%emt 0:02:03]} 6. Re1 {[%emt 0:00:00]} Nc5 {[%emt 0:00:14]} 7. Bxc6 {[%emt 0:00:00]} dxc6 {[%emt 0:00:06]} 8. Nxe5 {[%emt 0:00:00]} Be7 {[%emt 0:00:05]} 9. d4 {[%emt 0:00:00]} Ne6 {[%emt 0:00:04]} 10. c3 {[%emt 0:00:00]} O-O {[%emt 0:00:06]} 11. Be3 {[%emt 0:00:00]} f6 {[%emt 0:11:17] C80: Open Ruy Lopez: Sidelines and 9 Nbd2.} 12. Nf3 {[%emt 0:00:00]} Re8 {[%emt 0:03:32]} 13. Qb3 {[%emt 0:00:00] [#]} Kh8 $146 {[%emt 0:18:20] The position is equal.} ({Predecessor:} 13... Bd6 14. Nbd2 f5 15. Bg5 Qd7 16. Bh4 h6 17. g4 fxg4 18. Ne5 Bxe5 19. Rxe5 Qf7 {0-1 Bazyuk,A (1817)-Paravyan,D (2025) RSSU-18 op Moscow 2009 (5)}) 14. Nbd2 {[%emt 0:00:00]} b6 {[%emt 0:06:53]} 15. h3 {[%emt 0:00:00]} Bd6 {[%emt 0:08:14]} 16. Ne4 {[%emt 0:00:00]} Nf8 {[%emt 0:07:09]} 17. Nxd6 {[%emt 0:00:00]} Qxd6 {[%emt 0:02:20]} 18. c4 {[%emt 0:00:00]} Be6 {[%emt 0:03:20]} 19. Qc3 {[%emt 0:00:00]} b5 {[%emt 0:10:04]} 20. b3 {[%emt 0:00:00]} Ng6 {[%emt 0:01:11]} 21. Rac1 {[%emt 0:00:00]} b4 {[%emt 0:03:34]} 22. Qd2 {[%emt 0:00:00]} a5 {[%emt 0:00:19]} 23. Nh2 {[%emt 0:00:00]} Qd7 {[%emt 0:02:08]} 24. Bf4 {[%emt 0:04:53]} Nxf4 25. Qxf4 {[%emt 0:00:01]} Kg8 {[%emt 0:09:29]} 26. Nf1 {[%emt 0:00:29]} a4 {[%emt 0:01:26]} 27. Re3 {[%emt 0:01:46]} axb3 {[%emt 0:00:32]} 28. axb3 {[%emt 0:00:01]} Bf7 {[%emt 0:01:00][%cal Be6f7,Bf7e8,Be8c6][%mdl 32]} 29. Rxe8+ {[%emt 0:06:50]} Bxe8 {[%emt 0:00:18]} 30. Qd2 {[%emt 0:00:00]} c5 {[%emt 0:03:21]} 31. dxc5 {[%emt 0:00:00]} Qxd2 {[%emt 0:00:02]} 32. Nxd2 $11 {[%emt 0:00:00][%mdl 4096] Endgame KRB-KRN} Bc6 {[%emt 0:00:07]} 33. Re1 {[%emt 0:00:02]} Kf7 {[%emt 0:00:10]} 34. Re3 {[%emt 0:00:31]} Ra5 {[%emt 0:00:49]} 35. Nf3 {[%emt 0:00:34]} Bxf3 $1 {[%emt 0:00:17]} 36. Rxf3 {[%emt 0:00:29]} Rxc5 {[%emt 0:00:09]} 37. Re3 {[%emt 0:00:43]} Ra5 {[%emt 0:00:22]} 38. g3 {[%emt 0:00:29]} Ra2 {[%emt 0:00:49]} 39. Kg2 {[%emt 0:00:08]} Rb2 {[%emt 0:00:31]} 40. Kf3 {[%emt 0:00:13]} h5 {[%emt 0:00:44] Weighted Error Value: White=0.07 (flawless) /Black=0.04 (flawless)} 1/2-1/2

[Event "Israeli Team-ch 2023"]
[Site "Petah Tikva"]
[Date "2023.01.13"]
[Round "2.18"]
[White "Linker, Mikhail"]
[Black "Kuprijanov, Anatoly"]
[Result "0-1"]
[ECO "B13"]
[WhiteElo "2297"]
[BlackElo "2270"]
[Annotator "TA"]
[PlyCount "146"]
[EventDate "2023.01.13"]
[EventCountry "ISR"]
[SourceTitle "playchess.com"]
[Source "ChessBase"]
[SourceQuality "1"]
[TimeControl "40/5400+30:1800+30"]

{[%evp 10,146,31,29,27,34,27,29,33,0,2,0,19,-106,-77,-102,-98,-114,0,0,0,-79,-43,-83,0,-54,-42,-118,-102,-121,0,-30,-43,-20,8,0,-15,0,-9,-45,-23,-55,0,0,108,0,0,0,191,139,139,139,139,139,139,139,139,96,96,96,404,0,96,96,139,111,319,295,419,442,428,433,406,67,119,119,119,58,41,57,67,67,120,128,90,67,67,67,67,67,67,67,67,67,67,66,66,51,56,11,11,14,16,0,0,0,0,-15,-18,-284,-266,-872,-677,-872,-872,-1064,-1081,-1029,-1021,-1006,-1133,-997,-984,-960,-1037,-898,-564,-535,-456,-493,-442,-436,-395,-2028,-1896,-5189,-4690,-6119,-5828]} 1. e4 {[%emt 0:07:25]} c6 {[%emt 0:00:18]} 2. d4 {[%emt 0:00:43]} d5 {[%emt 0:00:05]} 3. exd5 {[%emt 0:00:40]} cxd5 {[%emt 0:00:06]} 4. Bd3 {[%emt 0:00:06]} Nc6 {[%emt 0:00:05]} 5. c3 {[%emt 0:00:05]} Qc7 {[%emt 0:01:30]} 6. h3 {[%emt 0:05:13]} e6 {[%emt 0:04:39] B13: Caro-Kann: Exchange Variation and Panov-Botvinnik Attack.} 7. Nf3 {[%emt 0:00:49]} Bd6 {[%emt 0:00:06]} 8. O-O {[%emt 0:01:20]} Nge7 {[%emt 0:04:41] White has an edge.} 9. Qc2 {[%emt 0:10:14] [#]} Bd7 $146 {[%emt 0:03:38]} ({Predecessor:} 9... Ng6 10. Re1 O-O 11. h4 Re8 12. h5 Nf8 13. h6 g6 14. Bg5 Bf4 15. Bxf4 Qxf4 {0-1 Rublack,V (1577)-Von Schwerin,C (1914) GER-ch U14 Willingen 2008 (2)}) 10. Re1 {[%emt 0:08:09]} f6 {[%emt 0:02:53]} 11. Bxh7 {[%emt 0:07:51]} (11. b4 $11) 11... O-O-O $17 {[%emt 0:03:11][%cal Og7g6]} 12. Na3 {[%emt 0:13:12]} Bxa3 {[%emt 0:13:07]} 13. bxa3 {[%emt 0:00:02]} f5 {[%emt 0:15:04]} (13... g6 $1 $17 14. Bxg6 Rdg8) 14. Ng5 $36 {[%emt 0:01:51][%mdl 2048] White is pushing.} Nxd4 {[%emt 0:00:06][%mdl 64] Pin} 15. Qd3 {[%emt 0:02:59]} (15. Qd2 $11 {remains equal.} Ndc6 16. a4) 15... Ndc6 $17 {[%emt 0:00:06]} 16. f4 {[%emt 0:04:38]} Rde8 {[%emt 0:19:18]} (16... Kb8 $17) 17. Rb1 {[%emt 0:05:29]} (17. c4 $11) 17... Kb8 {[%emt 0:05:56]} 18. Be3 {[%emt 0:02:09]} (18. Nxe6 $2 Bxe6 19. Rxe6 Rxh7 $19) ({White should try} 18. c4 $15) 18... Ka8 {[%emt 0:06:43]} 19. Qd2 {[%emt 0:04:35]} Bc8 {[%emt 0:03:45]} (19... Ref8 $1 $17 {And now ...Rf6 would win.} 20. Rbd1 Qa5) 20. Bd4 {[%emt 0:04:27]} Nxd4 {[%emt 0:00:01]} 21. cxd4 {[%emt 0:00:09]} Ref8 {[%emt 0:03:19]} 22. h4 {[%emt 0:02:55]} (22. Nxe6 $2 Bxe6 23. Rxe6 Rxh7 $19) (22. Rxe6 {looks sharper.} Bxe6 23. Nxe6 Qd6 24. Nxf8 Rxf8 25. Qb2) 22... g6 {[%emt 0:02:25] Threatens to win with ...Nc6.} 23. g3 {[%emt 0:00:49]} (23. Nxe6 $2 Bxe6 24. Rxe6 Rxh7 $19) 23... Rf6 {[%emt 0:00:33] ...Nc6 would be deadly.} 24. Rec1 {[%emt 0:03:37]} Nc6 {[%emt 0:00:00]} 25. Qb4 {[%emt 0:00:30]} Qd7 {[%emt 0:01:00]} (25... Rxh7 26. Nxh7 (26. Rxc6 Qxc6 27. Nxh7 Rf7 $11) 26... Rf7 27. Nf8 $16) ({Black should play} 25... Bd7 $1 $15) 26. Qb5 $1 $11 {[%emt 0:00:30]} Re8 {[%emt 0:00:30]} (26... Rxh7 $2 27. Nxh7 (27. Rxc6 Rh8 $16) 27... Rf7 28. Ng5 $18) (26... Nxd4 27. Qb2 e5 28. fxe5 $14) (26... Qc7 $11 {keeps the balance.}) 27. a4 {[%emt 0:00:30]} (27. Nf3 $1 $16 {[%cal Rf3e5]}) 27... Qc7 {[%emt 0:00:30]} (27... Nxd4 28. Qb2 e5 29. fxe5 $14) 28. a5 {[%emt 0:00:30][%cal Oa5a6]} Qxa5 {[%emt 0:00:30]} (28... a6 $11 {and Black has nothing to worry.} 29. Qa4 Re7) 29. Rxc6 {[%emt 0:00:30]} (29. Qxa5 $18 {[%cal Oc1c6] Threatening mate with Rxc6!} Nxa5 30. Rc7) 29... Qxb5 $16 {[%emt 0:00:30]} 30. Rxc8+ {[%emt 0:00:30]} Rxc8 {[%emt 0:00:30]} 31. Rxb5 {[%emt 0:00:30]} b6 {[%emt 0:07:57] Dodges Rc5} 32. Rb2 {[%emt 0:07:49]} Kb7 {[%emt 0:00:14]} 33. Re2 {[%emt 0:01:24]} Re8 {[%emt 0:00:02]} 34. Rc2 {[%emt 0:00:46]} Rc8 $2 {[%emt 0:01:06][%mdl 8192]} (34... a5 $16 {is more resistant.}) 35. Re2 $2 {[%emt 0:02:22]} (35. Rxc8 $18 Kxc8 36. Bg8) 35... Re8 {[%emt 0:00:30]} 36. Kf2 {[%emt 0:00:30]} Kc7 {[%emt 0:00:30]} 37. Ke3 {[%emt 0:00:30]} Kd6 $2 {[%emt 0:00:30]} (37... b5 $16 {might work better.}) 38. Rc2 $1 $18 {[%emt 0:03:12]} Rh8 {[#]} (38... a5 {is a better defense.} 39. Nf3 Rff8) 39. Bxg6 $1 {[%emt 0:00:00][%mdl 576] Deflection} Rxg6 {[%emt 0:02:53][%mdl 4096] Endgame KRR-KRN} 40. Nf7+ {[%emt 0:00:00]} Ke7 {[%emt 0:00:06]} 41. Rc7+ $2 {[%emt 0:28:57]} (41. Nxh8 $18 Rxg3+ 42. Kf2) 41... Kf6 $14 {[%emt 0:30:18]} 42. Nxh8 {[%emt 0:00:05][%csl Gh8][%cal Rc7f7]} Rxg3+ $16 {[%emt 0:00:04] KRN-KR} 43. Kf2 {[%emt 0:00:40]} (43. Ke2 $1 $16 {[%csl Gh8][%cal Rc7f7]} Rg2+ 44. Kf3) 43... Rg7 $14 {[%emt 0:00:02] Repels Rf7+} 44. Rc8 {[%emt 0:01:58] Hoping for Rf8+.} Rh7 {[%emt 0:00:00]} 45. Rg8 $1 {[%emt 0:00:00]} a6 {[%emt 0:00:00] [#]} (45... Rxh4 46. Rg6+ Ke7 47. Rg7+ Kf8 48. Ng6+ (48. Rxa7 Rxh8 49. Ra8+ Kg7 $11) 48... Kxg7 49. Nxh4 $18) (45... b5 $1 $14) 46. a4 $1 $16 {[%emt 0:00:00]} b5 {[%emt 0:00:00]} 47. axb5 {[%emt 0:02:50]} axb5 {[%emt 0:00:00]} 48. Ke3 {[%emt 0:00:00]} b4 {[%emt 0:00:00]} 49. Kd3 {[%emt 0:00:00]} Rh6 {[%emt 0:00:00]} (49... Rxh4 50. Rg6+ Ke7 51. Rg7+ Kd6 52. Nf7+ Kc6 53. Nd8+ Kb5 54. Rb7+ (54. Nxe6 Rh3+ 55. Kc2 Rh2+ 56. Kd3 Rh3+ 57. Ke2 Rh2+ 58. Kf3 Rh3+ 59. Kf2 Rh2+ 60. Kf3 Rh3+ 61. Kf2 Rh2+ 62. Kf3 $11) 54... Ka4 55. Nxe6 $16) 50. Kc2 {Kb3 is the strong threat.} Rxh4 {[%cal Oh4g4]} 51. Rg6+ {[%emt 0:00:00]} Ke7 {[%emt 0:00:00]} 52. Rg7+ {[%emt 0:00:00]} Kd6 $1 {[%emt 0:00:00]} 53. Nf7+ {[%emt 0:00:00]} Kc6 $1 {[%emt 0:00:00]} 54. Kb3 {[%emt 0:00:00]} Rxf4 {[%emt 0:00:00]} 55. Ne5+ {[%emt 0:00:00]} Kb6 {[%emt 0:00:00]} 56. Nd7+ {[%emt 0:00:00]} Kb5 {[%emt 0:00:00]} 57. Nc5 {[%emt 0:00:00]} Rf3+ {[%emt 0:00:00]} 58. Kc2 {[%emt 0:00:00][%cal Oc5d3] [#]} e5 $1 {[%emt 0:00:00][%cal Be6e5,Be5e4][%mdl 1056] Black has compensation.} 59. Rb7+ $2 {[%emt 0:01:18][%mdl 8192]} (59. Ne6 $11 {and White stays safe.}) (59. Nb7 b3+) 59... Kc4 $19 {[%emt 0:00:00]} 60. Nd7 $2 {[%emt 0:02:38] [#]} (60. Kd2 Rf2+ 61. Ke1) 60... Rf2+ $1 {[%emt 0:00:00]} (60... exd4 61. Ne5+ Kc5 62. Nxf3 Kc4 63. Ne5+ Kc5 64. Kd3 b3 65. Rxb3) 61. Kd1 {[%emt 0:00:13]} e4 {[%emt 0:01:03]} ({Not} 61... Kxd4 62. Rxb4+ Kc3 63. Nxe5 $11) ({Inferior is} 61... exd4 62. Rc7+ Kb5 63. Rc5+ Ka4 64. Rxd5 $11) 62. Ne5+ {[%emt 0:02:39]} Kxd4 {[%emt 0:03:00]} 63. Nc6+ {[%emt 0:00:03]} Kc4 {[%emt 0:00:15]} 64. Ke1 {[%emt 0:01:02]} Rb2 {[%emt 0:01:47]} 65. Ne5+ {[%emt 0:00:31]} Kd4 {[%emt 0:01:49]} 66. Nc6+ {[%emt 0:00:04]} Kc5 {[%emt 0:02:28]} 67. Nd8 {[%emt 0:00:24]} b3 {[%emt 0:01:36][%cal Bb4b3,Bb3b2][%mdl 32]} 68. Ne6+ {[%emt 0:00:09]} Kc4 {[%emt 0:00:42]} 69. Rc7+ {[%emt 0:00:13]} Kd3 {[%emt 0:00:27]} 70. Nf4+ {[%emt 0:00:13]} Kd4 {[%emt 0:00:03] Strongly threatening ...Rb1+.} 71. Rd7 $2 {[%emt 0:00:35]} (71. Ne2+ Ke5 72. Re7+ Kd6 73. Rb7) 71... Rb1+ {[%emt 0:00:41] Black is clearly winning.} 72. Ke2 {[%emt 0:01:14]} b2 {[%emt 0:00:16] ( -> ...Rh1)} 73. Rb7 {[%emt 0:01:10]} Rh1 {[%emt 0:00:17] What a bad dream for White.   Weighted Error Value: White=0.55/Black=0.37} 0-1